fUST/lending_fUST_20241231
["ID","MTS","AMOUNT","RATE_DAILY","PERIOD"]
[347246284,1735624246334,-500.0,0.00019452,3]
[347246285,1735624246345,-500.0,0.00019452,3]
[347246286,1735624246357,-500.0,0.00019452,3]
[347246287,1735624246368,-604.04368356,0.00019452,3]
[347246288,1735624246379,-500.0,0.00019452,3]
[347246289,1735624246389,-500.0,0.00019452,3]
[347246290,1735624246400,-500.0,0.00019723,3]
[347246291,1735624246411,-500.0,0.00019725,3]
[347246292,1735624246423,-500.0,0.00019726,3]
[347246293,1735624246434,-500.0,0.00019726,3]
[347246294,1735624246444,-626.48138934,0.00019726,3]
[347246295,1735624246455,-207.84510615,0.00019726,3]
[347246296,1735624246466,-797.52,0.00019726,3]
[347246297,1735624246476,-500.0,0.00019726,3]
[347246298,1735624246485,-500.0,0.00019726,3]
[347246299,1735624246495,-1868.07,0.00019726,3]
[347246300,1735624246506,-500.0,0.00019726,3]
[347246301,1735624246516,-500.0,0.00019726,3]
[347246302,1735624246526,-617.67340672,0.00019726,3]
[347246303,1735624246537,-500.0,0.00019726,3]
[347246304,1735624246548,-500.0,0.00019726,2]
[347246305,1735624246559,-1018.09,0.00019726,3]
[347246306,1735624246570,-500.0,0.00019726,3]
[347246307,1735624246582,-287.44256285,0.00019726,3]
[347246308,1735624246624,-212.55743715,0.00019726,3]
[347246309,1735624246635,-500.0,0.00019726,3]
[347246310,1735624246646,-374.242563,0.00019726,3]
[347246312,1735624246663,-257.817437,0.00019726,3]
[347246313,1735624246674,-500.0,0.00019726,3]
[347246314,1735624246684,-1745.51,0.00019726,3]
[347246315,1735624246694,-500.0,0.00019726,3]
[347246316,1735624246704,-500.0,0.00019726,3]
[347246317,1735624246713,-623.11,0.00019726,3]
[347246318,1735624246723,-500.0,0.00019726,3]
[347246319,1735624246732,-500.0,0.00019726,3]
[347246320,1735624246743,-6349.9,0.00019726,3]
[347246321,1735624246754,-16.08742895,0.00019726,3]
[347246326,1735625232144,-154.02112611,0.00013288,2]
[347246327,1735625232165,-7.67237409,0.00013422,2]
[347246328,1735625346100,-146.34875202,0.00013422,2]
[347246329,1735625346121,-91.77107216,0.00013973,2]
[347246330,1735625370184,-65.88800284,0.00013973,2]
[347246331,1735625370204,-300.0,0.00018382,2]
[347246332,1735625370225,-17968.40259278,0.00018383,2]
[347246333,1735625384666,-910.02212959,0.00018199,2]
[347246365,1735625432219,-6021.57527763,0.00018199,2]
[347246366,1735625432228,-4211.65155591,0.00018383,2]
[347246370,1735625438094,-2719.94585131,0.00018383,2]
[347246371,1735625438103,-154.21349959,0.00019077,2]
[347246372,1735625438112,-475.86804181,0.00019078,2]
[347246373,1735625438121,-346.40097771,0.00019078,2]
[347246374,1735625438135,-499.49440839,0.00019115,2]
[347246375,1735625438144,-500.45756679,0.00019173,2]
[347246376,1735625438153,-158.5,0.00019173,2]
[347246377,1735625438164,-1003.74366849,0.00019177,2]
[347246378,1735625438173,-269.45984133,0.00019177,2]
[347246379,1735625438182,-500.0,0.00019177,2]
[347246380,1735625438191,-206.05045402,0.00019177,2]
[347246381,1735625438200,-500.0,0.00019177,2]
[347246382,1735625438209,-500.0,0.00019177,2]
[347246383,1735625438218,-500.0,0.00019177,2]
[347246384,1735625438227,-500.0,0.00019177,2]
[347246385,1735625438236,-500.0,0.00019177,2]
[347246386,1735625438245,-423.22332398,0.00019177,2]
[347246387,1735625438254,-502.77137632,0.00019177,2]
[347246388,1735625438263,-162.03640781,0.00019177,2]
[347246389,1735625438272,-5178.17864557,0.00019178,2]
[347246390,1735625438281,-34903.39883897,0.00019178,2]
[347246391,1735625438290,-500.0,0.00019178,2]
[347246392,1735625438299,-500.0,0.00019178,2]
[347246393,1735625438308,-500.0,0.00019178,2]
[347246394,1735625438317,-500.0,0.00019178,2]
[347246395,1735625438327,-500.0,0.00019178,2]
[347246396,1735625438337,-500.0,0.00019178,2]
[347246397,1735625438348,-500.0,0.00019178,2]
[347246398,1735625438357,-506.33120208,0.00019178,2]
[347246399,1735625438367,-500.0,0.00019178,2]
[347246400,1735625438381,-528.44917059,0.00019178,2]
[347246401,1735625438389,-500.0,0.00019178,2]
[347246402,1735625438398,-500.0,0.00019178,2]
[347246403,1735625438409,-500.0,0.00019178,2]
[347246404,1735625438418,-502.97333494,0.00019178,2]
[347246405,1735625438427,-500.0,0.00019178,2]
[347246406,1735625438436,-503.47198621,0.00019178,2]
[347246407,1735625438445,-500.0,0.00019178,2]
[347246408,1735625438454,-500.0,0.00019178,2]
[347246409,1735625438463,-151.25270604,0.00019178,2]
[347246410,1735625438472,-493.47886995,0.00019178,2]
[347246411,1735625438481,-500.0,0.00019178,2]
[347246412,1735625438489,-503.39948042,0.00019178,2]
[347246413,1735625438498,-435.24041012,0.00019178,2]
[347246414,1735625438507,-500.0,0.00019178,2]
[347246415,1735625438516,-500.0,0.00019178,2]
[347246416,1735625438525,-508.80629684,0.00019178,2]
[347246417,1735625438534,-500.0,0.00019178,2]
[347246418,1735625438543,-500.0,0.00019178,2]
[347246419,1735625438552,-488.77986999,0.00019178,2]
[347246420,1735625438561,-500.0,0.00019178,2]
[347246421,1735625438570,-510.65179228,0.00019178,2]
[347246422,1735625438579,-633.81800468,0.00019178,2]
[347246423,1735625438589,-476.91725128,0.00019178,2]
[347246424,1735625438598,-534.06,0.00019178,2]
[347246425,1735625438607,-307.26674055,0.00019178,2]
[347246426,1735625438616,-500.0,0.00019178,2]
[347246427,1735625438629,-500.0,0.00019178,2]
[347246428,1735625438638,-500.0,0.00019178,2]
[347246429,1735625438647,-500.0,0.00019178,2]
[347246430,1735625438657,-345.40602296,0.00019178,2]
[347246431,1735625438666,-500.0,0.00019178,2]
[347246432,1735625438675,-500.0,0.00019178,2]
[347246433,1735625438684,-502.53447067,0.00019178,2]
[347246434,1735625438693,-500.0,0.00019178,2]
[347246435,1735625438702,-579.06850824,0.00019178,2]
[347246436,1735625438711,-500.0,0.00019178,2]
[347246437,1735625438720,-500.57118368,0.00019178,2]
[347246438,1735625438729,-593.02187688,0.00019178,2]
[347246439,1735625438738,-500.0,0.00019178,2]
[347246440,1735625438748,-508.2010263,0.00019178,2]
[347246441,1735625438756,-503.8261317,0.00019178,2]
[347246442,1735625438765,-500.0,0.00019178,2]
[347246443,1735625438774,-502.3234434,0.00019178,2]
[347246444,1735625438783,-500.0,0.00019178,2]
[347246445,1735625438791,-500.0,0.00019178,2]
[347246446,1735625438801,-500.0,0.00019178,2]
[347246447,1735625438810,-500.0,0.00019178,2]
[347246448,1735625438819,-500.0,0.00019178,2]
[347246449,1735625438828,-500.0,0.00019178,2]
[347246450,1735625438837,-500.0,0.00019178,2]
[347246451,1735625438846,-500.88478439,0.00019178,2]
[347246452,1735625438856,-500.0,0.00019178,2]
[347246453,1735625438865,-500.0,0.00019178,2]
[347246454,1735625438878,-500.0,0.00019178,2]
[347246455,1735625438887,-500.0,0.00019178,2]
[347246456,1735625438896,-500.0,0.00019178,2]
[347246457,1735625438906,-500.0,0.00019178,2]
[347246458,1735625438915,-500.0,0.00019178,2]
[347246459,1735625438924,-1637.74,0.00019178,2]
[347246460,1735625438933,-502.58356091,0.00019178,2]
[347246461,1735625438941,-500.0,0.00019178,2]
[347246462,1735625438950,-534.27570609,0.00019178,2]
[347246463,1735625438959,-500.0,0.00019178,2]
[347246464,1735625438968,-500.0,0.00019178,2]
[347246465,1735625438977,-500.0,0.00019178,2]
[347246466,1735625438986,-504.48818486,0.00019178,2]
[347246467,1735625438995,-501.8114452,0.00019178,2]
[347246468,1735625439003,-500.0,0.00019178,2]
[347246469,1735625439013,-504.31527725,0.00019178,2]
[347246470,1735625439022,-500.0,0.00019178,2]
[347246471,1735625439031,-500.0,0.00019178,2]
[347246472,1735625439040,-500.0,0.00019178,2]
[347246473,1735625439049,-377.85298173,0.00019178,2]
[347246474,1735625439057,-500.0,0.00019178,2]
[347246475,1735625439066,-500.0,0.00019178,2]
[347246476,1735625439075,-500.0,0.00019178,2]
[347246477,1735625439084,-500.0,0.00019178,2]
[347246478,1735625439094,-500.0,0.00019178,2]
[347246479,1735625439106,-501.80677034,0.00019178,2]
[347246480,1735625439117,-500.0,0.00019178,2]
[347246481,1735625439131,-500.0,0.00019178,2]
[347246482,1735625439142,-500.0,0.00019178,2]
[347246483,1735625439153,-1655.39,0.00019178,2]
[347246484,1735625439163,-500.0,0.00019178,2]
[347246485,1735625439172,-500.0,0.00019178,2]
[347246486,1735625439182,-607.18424753,0.00019178,2]
[347246487,1735625439193,-168.0,0.00019178,2]
[347246488,1735625439204,-503.10747652,0.00019178,2]
[347246489,1735625439215,-500.0,0.00019178,2]
[347246490,1735625439225,-500.0,0.00019178,2]
[347246491,1735625439235,-500.0,0.00019178,2]
[347246492,1735625439246,-736.14,0.00019178,2]
[347246493,1735625439257,-500.0,0.00019178,2]
[347246494,1735625439268,-500.0,0.00019178,2]
[347246495,1735625439278,-151.215603,0.00019178,2]
[347246496,1735625439290,-500.0,0.00019178,2]
[347246497,1735625439301,-500.0,0.00019178,2]
[347246498,1735625439312,-500.0,0.00019178,2]
[347246499,1735625439323,-500.0,0.00019178,2]
[347246500,1735625439334,-225.87835179,0.00019178,2]
[347246501,1735625439344,-500.0,0.00019178,2]
[347246502,1735625439354,-500.0,0.00019178,2]
[347246503,1735625439365,-500.0,0.00019178,2]
[347246504,1735625439376,-151.0,0.00019178,2]
[347246505,1735625439387,-500.0,0.00019178,2]
[347246506,1735625439398,-500.0,0.00019178,2]
[347246507,1735625439412,-500.0,0.00019178,2]
[347246508,1735625439423,-505.00623666,0.00019178,2]
[347246509,1735625439434,-503.50161216,0.00019178,2]
[347246510,1735625439444,-500.0,0.00019178,2]
[347246511,1735625439456,-500.0,0.00019178,2]
[347246512,1735625439466,-507.77994077,0.00019178,2]
[347246513,1735625439476,-500.0,0.00019178,2]
[347246514,1735625439486,-500.0,0.00019178,2]
[347246515,1735625439497,-500.0,0.00019178,2]
[347246516,1735625439508,-500.0,0.00019178,2]
[347246517,1735625439518,-500.0,0.00019178,2]
[347246518,1735625439528,-501.56704428,0.00019178,2]
[347246520,1735625439539,-500.0,0.00019178,2]
[347246522,1735625439550,-507.28905441,0.00019178,2]
[347246523,1735625439560,-151.0,0.00019178,2]
[347246524,1735625439572,-500.0,0.00019178,2]
[347246525,1735625439582,-500.0,0.00019178,2]
[347246526,1735625439592,-500.0,0.00019178,2]
[347246527,1735625439603,-500.0,0.00019178,2]
[347246528,1735625439613,-500.0,0.00019178,2]
[347246529,1735625439627,-500.0,0.00019178,2]
[347246530,1735625439638,-500.0,0.00019178,2]
[347246531,1735625439648,-500.0,0.00019178,2]
[347246533,1735625439660,-502.25934049,0.00019178,2]
[347246534,1735625439671,-501.60186689,0.00019178,2]
[347246535,1735625439681,-500.0,0.00019178,2]
[347246536,1735625439691,-505.05879928,0.00019178,2]
[347246537,1735625439701,-501.79513086,0.00019178,2]
[347246538,1735625439710,-500.0,0.00019178,2]
[347246539,1735625439720,-151.0,0.00019178,2]
[347246540,1735625439729,-500.0,0.00019178,2]
[347246541,1735625439739,-500.0,0.00019178,2]
[347246542,1735625439751,-500.0,0.00019178,2]
[347246543,1735625439761,-500.0,0.00019178,2]
[347246544,1735625439774,-500.0,0.00019178,2]
[347246545,1735625439785,-500.76658263,0.00019178,2]
[347246546,1735625439796,-583.06125413,0.00019178,2]
[347246547,1735625439806,-500.0,0.00019178,2]
[347246548,1735625439816,-500.0,0.00019178,2]
[347246549,1735625439826,-151.0,0.00019178,2]
[347246550,1735625439837,-500.0,0.00019178,2]
[347246551,1735625439847,-500.0,0.00019178,2]
[347246552,1735625439856,-500.0,0.00019178,2]
[347246553,1735625439867,-273.16240629,0.00019178,2]
[347246554,1735625439881,-500.0,0.00019178,2]
[347246555,1735625439891,-500.0,0.00019178,2]
[347246556,1735625439901,-500.0,0.00019178,2]
[347246557,1735625439910,-500.0,0.00019178,2]
[347246558,1735625439920,-500.0,0.00019178,2]
[347246560,1735625439930,-500.0,0.00019178,2]
[347246562,1735625439939,-173.731042,0.00019178,2]
[347246564,1735625439949,-500.0,0.00019178,2]
[347246565,1735625439960,-500.0,0.00019178,2]
[347246566,1735625439970,-173.731042,0.00019178,2]
[347246567,1735625439980,-500.0,0.00019178,2]
[347246568,1735625439990,-500.0,0.00019178,2]
[347246569,1735625440000,-500.0,0.00019178,2]
[347246570,1735625440011,-500.0,0.00019178,2]
[347246571,1735625440021,-500.0,0.00019178,2]
[347246572,1735625440031,-553.06,0.00019178,2]
[347246573,1735625440041,-502.33266393,0.00019178,2]
[347246574,1735625440051,-500.0,0.00019178,2]
[347246575,1735625440062,-500.0,0.00019178,2]
[347246576,1735625440071,-500.0,0.00019178,2]
[347246577,1735625440081,-500.0,0.00019178,2]
[347246578,1735625440091,-500.0,0.00019178,2]
[347246579,1735625440101,-500.0,0.00019178,2]
[347246580,1735625440110,-500.0,0.00019178,2]
[347246581,1735625440121,-598.53094804,0.00019178,2]
[347246582,1735625440137,-504.0517199,0.00019178,2]
[347246583,1735625440147,-151.0,0.00019178,2]
[347246584,1735625440157,-151.0,0.00019178,2]
[347246585,1735625440167,-500.0,0.00019178,2]
[347246586,1735625440177,-502.8671489,0.00019178,2]
[347246587,1735625440187,-500.0,0.00019178,2]
[347246588,1735625440196,-151.0,0.00019178,2]
[347246589,1735625440206,-500.0,0.00019178,2]
[347246590,1735625440216,-500.0,0.00019178,2]
[347246591,1735625440226,-500.0,0.00019178,2]
[347246592,1735625440236,-151.0,0.00019178,2]
[347246593,1735625440245,-500.0,0.00019178,2]
[347246594,1735625440256,-500.0,0.00019178,2]
[347246595,1735625440373,-500.0,0.00019178,2]
[347246596,1735625440384,-168.53422188,0.00019178,2]
[347246597,1735625440393,-500.0,0.00019178,2]
[347246598,1735625440403,-504.043751,0.00019178,2]
[347246599,1735625440413,-500.0,0.00019178,2]
[347246600,1735625440421,-507.07787314,0.00019178,2]
[347246601,1735625440430,-500.0,0.00019178,2]
[347246602,1735625440439,-502.64934432,0.00019178,2]
[347246603,1735625440448,-500.0,0.00019178,2]
[347246604,1735625440457,-631.64,0.00019178,2]
[347246605,1735625440466,-500.0,0.00019178,2]
[347246606,1735625440475,-953.32,0.00019178,2]
[347246607,1735625440483,-500.0,0.00019178,2]
[347246608,1735625440493,-500.0,0.00019178,2]
[347246609,1735625440502,-500.0,0.00019178,2]
[347246610,1735625440511,-500.0,0.00019178,2]
[347246611,1735625440520,-500.0,0.00019178,2]
[347246612,1735625440529,-524.91,0.00019178,2]
[347246613,1735625440538,-500.0,0.00019178,2]
[347246614,1735625440547,-151.0,0.00019178,2]
[347246615,1735625440556,-151.0,0.00019178,2]
[347246616,1735625440564,-151.0,0.00019178,2]
[347246617,1735625440573,-588.63800989,0.00019178,2]
[347246618,1735625440582,-500.0,0.00019178,2]
[347246619,1735625440591,-500.0,0.00019178,2]
[347246620,1735625440600,-500.0,0.00019178,2]
[347246621,1735625440609,-500.0,0.00019178,2]
[347246622,1735625440618,-500.0,0.00019178,2]
[347246623,1735625440630,-500.0,0.00019178,2]
[347246624,1735625440639,-500.0,0.00019178,2]
[347246625,1735625440647,-500.0,0.00019178,2]
[347246626,1735625440656,-500.0,0.00019178,2]
[347246627,1735625440665,-500.0,0.00019178,2]
[347246628,1735625440673,-500.0,0.00019178,2]
[347246629,1735625440682,-500.0,0.00019178,2]
[347246630,1735625440691,-584.87,0.00019178,2]
[347246631,1735625440700,-500.0,0.00019178,2]
[347246632,1735625440709,-500.0,0.00019178,2]
[347246633,1735625440718,-502.53047204,0.00019178,2]
[347246634,1735625440726,-500.0,0.00019178,2]
[347246635,1735625440735,-254.62848783,0.00019178,2]
[347246636,1735625440744,-501.56068483,0.00019178,2]
[347246637,1735625440754,-500.0,0.00019178,2]
[347246638,1735625440763,-357.07806497,0.00019178,2]
[347246639,1735625440772,-500.0,0.00019178,2]
[347246640,1735625440781,-500.0,0.00019178,2]
[347246641,1735625440790,-500.0,0.00019178,2]
[347246642,1735625440799,-500.0,0.00019178,2]
[347246643,1735625440809,-500.0,0.00019178,2]
[347246644,1735625440818,-500.0,0.00019178,2]
[347246645,1735625440827,-500.0,0.00019178,2]
[347246646,1735625440836,-500.0,0.00019178,2]
[347246647,1735625440845,-500.0,0.00019178,2]
[347246648,1735625440854,-500.0,0.00019178,2]
[347246649,1735625440864,-6363.26,0.00019178,2]
[347246650,1735625440872,-500.0,0.00019178,2]
[347246651,1735625440885,-636.49633785,0.00019178,2]
[347246652,1735625440894,-500.0,0.00019178,2]
[347246653,1735625440903,-500.0,0.00019178,2]
[347246654,1735625440912,-500.0,0.00019178,2]
[347246655,1735625440921,-151.0,0.00019178,2]
[347246656,1735625440930,-151.0,0.00019178,2]
[347246657,1735625440939,-240.02051,0.00019178,2]
[347246658,1735625440949,-392.00276002,0.00019178,2]
[347246659,1735625440960,-500.0,0.00019178,2]
[347246660,1735625440969,-500.0,0.00019178,2]
[347246661,1735625440978,-500.0,0.00019178,2]
[347246662,1735625440987,-500.0,0.00019178,2]
[347246663,1735625440996,-500.0,0.00019178,2]
[347246664,1735625441006,-500.0,0.00019178,2]
[347246665,1735625441015,-151.0,0.00019178,2]
[347246666,1735625441024,-500.0,0.00019178,2]
[347246667,1735625441033,-504.46116414,0.00019178,2]
[347246668,1735625441042,-500.0,0.00019178,2]
[347246669,1735625441051,-500.0,0.00019178,2]
[347246670,1735625441060,-500.0,0.00019178,2]
[347246671,1735625441069,-500.0,0.00019178,2]
[347246672,1735625441078,-500.0,0.00019178,2]
[347246673,1735625441087,-500.0,0.00019178,2]
[347246674,1735625441096,-501.27588559,0.00019178,2]
[347246675,1735625441105,-500.0,0.00019178,2]
[347246676,1735625441113,-500.0,0.00019178,2]
[347246677,1735625441123,-139.58152722,0.00019178,2]
[347246678,1735625441470,-1562.259989,0.00018199,2]
[347246679,1735625441481,-360.41847278,0.00019178,2]
[347246680,1735625441491,-500.0,0.00019178,2]
[347246681,1735625441500,-500.0,0.00019178,2]
[347246682,1735625441509,-350.47391284,0.00019178,2]
[347246683,1735625441519,-149.52608716,0.00019178,2]
[347246684,1735625441528,-500.0,0.00019178,2]
[347246685,1735625441538,-500.0,0.00019178,2]
[347246686,1735625441547,-500.0,0.00019178,2]
[347246687,1735625441556,-500.0,0.00019178,2]
[347246688,1735625441565,-500.0,0.00019178,2]
[347246689,1735625441574,-500.0,0.00019178,2]
[347246690,1735625441583,-500.0,0.00019178,2]
[347246691,1735625441592,-500.0,0.00019178,2]
[347246692,1735625441601,-222.21706932,0.00019178,2]
[347246693,1735625441610,-500.0,0.00019451,3]
[347246694,1735625441619,-500.0,0.00019451,3]
[347246695,1735625441631,-500.0,0.00019451,3]
[347246696,1735625441640,-500.0,0.00019451,3]
[347246697,1735625441648,-453.5,0.00019452,3]
[347246698,1735625441657,-151.0,0.00019452,2]
[347246699,1735625441665,-151.0,0.00019452,2]
[347246700,1735625441674,-500.0,0.00019452,3]
[347246701,1735625441683,-500.0,0.00019452,3]
[347246702,1735625441691,-637.37708059,0.00019452,3]
[347246703,1735625441700,-151.0,0.00019452,2]
[347246704,1735625441709,-151.0,0.00019452,2]
[347246705,1735625441718,-284.97,0.00019452,3]
[347246706,1735625441727,-1637.74,0.00019452,3]
[347246707,1735625441736,-490.58179665,0.00019452,3]
[347246708,1735625441745,-500.0,0.00019452,3]
[347246709,1735625441753,-500.0,0.00019452,3]
[347246710,1735625441762,-348.85707521,0.00019452,3]
[347246711,1735625441772,-573.41,0.00019452,3]
[347246712,1735625441781,-1655.39,0.00019452,3]
[347246713,1735625441790,-500.0,0.00019452,3]
[347246714,1735625441798,-500.0,0.00019452,3]
[347246715,1735625441808,-736.14,0.00019452,3]
[347246716,1735625441817,-500.0,0.00019452,3]
[347246717,1735625441826,-500.0,0.00019452,3]
[347246718,1735625441836,-502.08824874,0.00019452,3]
[347246719,1735625441846,-151.0,0.00019452,2]
[347246720,1735625441855,-500.0,0.00019452,3]
[347246721,1735625441865,-500.0,0.00019452,3]
[347246722,1735625441873,-500.0,0.00019452,3]
[347246723,1735625441885,-503.86829391,0.00019452,3]
[347246724,1735625441893,-500.0,0.00019452,3]
[347246725,1735625441903,-151.0,0.00019452,2]
[347246726,1735625441912,-500.0,0.00019452,3]
[347246727,1735625441921,-500.0,0.00019452,3]
[347246728,1735625441930,-500.0,0.00019452,3]
[347246729,1735625441939,-151.0,0.00019452,2]
[347246730,1735625441948,-417.51242642,0.00019452,3]
[347246731,1735625441960,-82.48757358,0.00019452,3]
[347246732,1735625441969,-500.0,0.00019452,3]
[347246733,1735625441979,-500.0,0.00019452,3]
[347246734,1735625441987,-525.66,0.00019452,3]
[347246735,1735625441996,-447.8213692,0.00019452,3]
[347246736,1735625442006,-500.0,0.00019452,3]
[347246737,1735625442016,-173.731042,0.00019452,2]
[347246738,1735625442025,-500.0,0.00019452,3]
[347246739,1735625442035,-173.731042,0.00019452,2]
[347246740,1735625442044,-500.0,0.00019452,3]
[347246741,1735625442053,-500.0,0.00019452,2]
[347246742,1735625442062,-500.0,0.00019452,3]
[347246743,1735625442071,-553.06,0.00019452,3]
[347246744,1735625442080,-500.0,0.00019452,3]
[347246745,1735625442089,-500.0,0.00019452,3]
[347246746,1735625442100,-151.0,0.00019452,2]
[347246747,1735625442109,-151.0,0.00019452,2]
[347246748,1735625442119,-500.0,0.00019452,3]
[347246749,1735625442129,-151.0,0.00019452,2]
[347246750,1735625442139,-500.0,0.00019452,3]
[347246751,1735625442148,-500.0,0.00019452,3]
[347246752,1735625442156,-631.64,0.00019452,3]
[347246753,1735625442166,-953.32,0.00019452,3]
[347246754,1735625442175,-104.3254398,0.00019452,3]
[347246776,1735626444164,-157.938864,0.00013973,2]
[347246777,1735626444184,-569.96811545,0.00018106,2]
[347246778,1735626449088,-53.29659555,0.00018106,2]
[347246779,1735626449109,-300.0,0.00018314,2]
[347246780,1735626449131,-42.75488325,0.00018315,2]
[347246829,1735626638345,-157.938864,0.00013973,2]
[347246830,1735626638354,-1927.7806605,0.00018315,2]
[347246835,1735626640225,-7936.15782911,0.00018315,2]
[347246836,1735626640237,-6740.81888187,0.00018315,2]
[347246837,1735626640249,-6157.90518717,0.00018315,2]
[347246838,1735626640258,-150.0,0.00019,3]
[347246839,1735626640268,-150.0,0.00019,2]
[347246840,1735626640277,-151.6482535,0.00019078,2]
[347246841,1735626640386,-7036.9934983,0.00019177,2]
[347246842,1735626640396,-500.0,0.00019178,2]
[347246843,1735626640405,-500.0,0.00019178,2]
[347246844,1735626640415,-500.0,0.00019178,2]
[347246845,1735626640424,-500.0,0.00019178,2]
[347246846,1735626640433,-243.57720177,0.00019178,2]
[347246847,1735626640442,-159.60550481,0.00019178,2]
[347246894,1735626643331,-340.39449519,0.00019178,2]
[347246895,1735626643341,-560.31960005,0.00019178,2]
[347246896,1735626643351,-500.0,0.00019178,2]
[347246897,1735626643361,-500.0,0.00019178,2]
[347246898,1735626643370,-500.0,0.00019178,2]
[347246899,1735626643380,-500.0,0.00019178,2]
[347246900,1735626643390,-500.0,0.00019178,2]
[347246901,1735626643400,-500.0,0.00019178,2]
[347246902,1735626643409,-500.0,0.00019178,2]
[347246903,1735626643418,-500.0,0.00019178,2]
[347246904,1735626643428,-582.40987452,0.00019178,2]
[347246905,1735626643437,-500.0,0.00019178,2]
[347246906,1735626643446,-502.08973209,0.00019178,2]
[347246907,1735626643455,-500.0,0.00019178,2]
[347246908,1735626643465,-501.25932294,0.00019178,2]
[347246909,1735626643474,-500.0,0.00019178,2]
[347246910,1735626643483,-500.0,0.00019178,2]
[347246911,1735626643493,-501.2423149,0.00019178,2]
[347246914,1735626643510,-502.01835626,0.00019178,2]
[347246915,1735626643520,-500.0,0.00019178,2]
[347246918,1735626643531,-180.89743198,0.00019178,2]
[347246919,1735626643541,-458.62902157,0.00019178,2]
[347246921,1735626643552,-500.0,0.00019178,2]
[347246922,1735626643562,-500.0,0.00019178,2]
[347246923,1735626643572,-500.0,0.00019178,2]
[347246924,1735626643582,-500.0,0.00019178,2]
[347246925,1735626643592,-500.0,0.00019178,2]
[347246926,1735626643602,-500.0,0.00019178,2]
[347246927,1735626643613,-218.89,0.00019178,2]
[347246928,1735626643623,-501.57250025,0.00019178,2]
[347246929,1735626643633,-269.29954359,0.00019178,2]
[347246930,1735626643643,-500.0,0.00019178,2]
[347246931,1735626643652,-500.0,0.00019178,2]
[347246932,1735626643662,-438.66498595,0.00019178,2]
[347246933,1735626643671,-500.0,0.00019178,2]
[347246934,1735626643681,-500.0,0.00019178,2]
[347246935,1735626643690,-323.83944576,0.00019178,2]
[347246936,1735626643700,-500.0,0.00019178,2]
[347246937,1735626643710,-500.0,0.00019178,2]
[347246938,1735626643719,-544.42440504,0.00019178,2]
[347246939,1735626643730,-500.0,0.00019178,2]
[347246940,1735626643739,-500.0,0.00019178,2]
[347246941,1735626643749,-500.0,0.00019178,2]
[347246942,1735626643758,-501.8900386,0.00019178,2]
[347246943,1735626643767,-515.7,0.00019178,2]
[347246944,1735626643777,-500.0,0.00019178,2]
[347246945,1735626643786,-1538.28,0.00019178,2]
[347246946,1735626643796,-500.0,0.00019178,2]
[347246947,1735626643807,-500.0,0.00019178,2]
[347246948,1735626643816,-503.6905916,0.00019178,2]
[347246949,1735626643825,-500.0,0.00019178,2]
[347246950,1735626643834,-500.0,0.00019178,2]
[347246951,1735626643844,-500.0,0.00019178,2]
[347246952,1735626643852,-500.0,0.00019178,2]